[Event "Titled Tuesday Blitz April 05 Early 2022"]
[White "Reprintsev, Alexander"]
[Black "Becerra, Juan David"]
[WhiteFideId "14100541"]
[BlackFideId "4404998"]
[WhiteElo "2108"]
[BlackElo "2277"]
[Result "0-1"]
[Round "03"]
[TimeControl "180+1"]
[Date "2022.04.05"]
[WhiteClock "0:00:06"]
[BlackClock "0:00:07"]

1. e4 {[%clk 0:02:48]}  e5 {[%clk 0:02:51]} 2. f4 {[%clk 0:02:47]}  Nc6 {[%clk 0:02:45]} 3. Nf3 {[%clk 0:02:47]}  d5 {[%clk 0:02:44]} 4. exd5 {[%clk 0:02:46]}  Qxd5 {[%clk 0:02:44]} 5. Nc3 {[%clk 0:02:46]}  Qe6 {[%clk 0:02:43]} 6. fxe5 {[%clk 0:02:44]}  Nxe5 {[%clk 0:02:42]} 7. Nxe5 {[%clk 0:02:44]}  Qxe5+ {[%clk 0:02:42]} 8. Qe2 {[%clk 0:02:45]}  Qxe2+ {[%clk 0:02:28]} 9. Bxe2 {[%clk 0:02:44]}  Be6 {[%clk 0:02:23]} 10. Nb5 {[%clk 0:02:40]}  Kd8 {[%clk 0:02:21]} 11. Bf3 {[%clk 0:02:33]}  c6 {[%clk 0:02:16]} 12. Nd4 {[%clk 0:02:33]}  Bd7 {[%clk 0:02:10]} 13. d3 {[%clk 0:02:31]}  Bd6 {[%clk 0:02:10]} 14. Bd2 {[%clk 0:02:26]}  Kc7 {[%clk 0:02:07]} 15. O-O-O {[%clk 0:02:23]}  Ne7 {[%clk 0:02:07]} 16. a3 {[%clk 0:02:12]}  Rae8 {[%clk 0:02:06]} 17. g3 {[%clk 0:02:10]}  h5 {[%clk 0:02:05]} 18. b4 {[%clk 0:02:01]}  h4 {[%clk 0:02:03]} 19. g4 {[%clk 0:01:58]}  h3 {[%clk 0:01:59]} 20. Rdf1 {[%clk 0:01:39]}  g6 {[%clk 0:01:51]} 21. Bd1 {[%clk 0:01:39]}  Rh7 {[%clk 0:01:51]} 22. Nf3 {[%clk 0:01:34]}  f6 {[%clk 0:01:39]} 23. g5 {[%clk 0:01:33]}  f5 {[%clk 0:01:35]} 24. Bc3 {[%clk 0:01:32]}  Nd5 {[%clk 0:01:33]} 25. Bd4 {[%clk 0:01:29]}  Bf4+ {[%clk 0:01:30]} 26. Kb2 {[%clk 0:01:28]}  Ne3 {[%clk 0:01:30]} 27. Re1 {[%clk 0:01:22]}  Nxd1+ {[%clk 0:01:21]} 28. Rxd1 {[%clk 0:01:22]}  Rhe7 {[%clk 0:01:21]} 29. Bf6 {[%clk 0:01:18]}  Re2 {[%clk 0:01:02]} 30. Ng1 {[%clk 0:01:17]}  R2e3 {[%clk 0:00:59]} 31. Rf1 {[%clk 0:01:14]}  Be5+ {[%clk 0:00:57]} 32. Bxe5+ {[%clk 0:01:13]}  R8xe5 {[%clk 0:00:58]} 33. Nf3 {[%clk 0:01:13]}  Re6 {[%clk 0:00:57]} 34. Nd4 {[%clk 0:01:10]}  Rd6 {[%clk 0:00:56]} 35. Rf4 {[%clk 0:01:10]}  Be6 {[%clk 0:00:55]} 36. Rh4 {[%clk 0:01:08]}  Bd5 {[%clk 0:00:48]} 37. Rf1 {[%clk 0:01:08]}  Bg2 {[%clk 0:00:48]} 38. Rf2 {[%clk 0:01:07]}  a5 {[%clk 0:00:46]} 39. bxa5 {[%clk 0:01:07]}  Rd5 {[%clk 0:00:46]} 40. a6 {[%clk 0:01:06]}  bxa6 {[%clk 0:00:45]} 41. Rff4 {[%clk 0:00:49]}  Re1 {[%clk 0:00:41]} 42. Rh6 {[%clk 0:00:46]}  Rd6 {[%clk 0:00:39]} 43. Rh7+ {[%clk 0:00:41]}  Rd7 {[%clk 0:00:38]} 44. Rfh4 {[%clk 0:00:37]}  Rh1 {[%clk 0:00:36]} 45. Ne6+ {[%clk 0:00:21]}  Kd6 {[%clk 0:00:35]} 46. Rxd7+ {[%clk 0:00:21]}  Kxd7 {[%clk 0:00:36]} 47. Nf8+ {[%clk 0:00:22]}  Kd6 {[%clk 0:00:33]} 48. Nxg6 {[%clk 0:00:23]}  Rxh2 {[%clk 0:00:33]} 49. Nf4 {[%clk 0:00:23]}  Ke5 {[%clk 0:00:32]} 50. g6 {[%clk 0:00:23]}  Kf6 {[%clk 0:00:32]} 51. Rh7 {[%clk 0:00:22]}  Bd5 {[%clk 0:00:33]} 52. g7 {[%clk 0:00:16]}  Rh1 {[%clk 0:00:30]} 53. Nxh3 {[%clk 0:00:14]}  f4 {[%clk 0:00:29]} 54. Rh6+ {[%clk 0:00:13]}  Kxg7 {[%clk 0:00:28]} 55. Rh4 {[%clk 0:00:13]}  f3 {[%clk 0:00:27]} 56. Rg4+ {[%clk 0:00:13]}  Kf7 {[%clk 0:00:27]} 57. Rf4+ {[%clk 0:00:13]}  Ke6 {[%clk 0:00:27]} 58. Ng5+ {[%clk 0:00:13]}  Ke5 {[%clk 0:00:27]} 59. Rf8 {[%clk 0:00:13]}  Rf1 {[%clk 0:00:28]} 60. Kc3 {[%clk 0:00:13]}  c5 {[%clk 0:00:27]} 61. Kd2 {[%clk 0:00:13]}  Kd6 {[%clk 0:00:28]} 62. Ke3 {[%clk 0:00:14]}  Re1+ {[%clk 0:00:28]} 63. Kd2 {[%clk 0:00:13]}  Re2+ {[%clk 0:00:28]} 64. Kc3 {[%clk 0:00:14]}  Rf2 {[%clk 0:00:28]} 65. Rf6+ {[%clk 0:00:15]}  Ke5 {[%clk 0:00:27]} 66. Rf8 {[%clk 0:00:15]}  Rf1 {[%clk 0:00:27]} 67. Kd2 {[%clk 0:00:15]}  Rf2+ {[%clk 0:00:26]} 68. Kd1 {[%clk 0:00:15]}  Kd4 {[%clk 0:00:24]} 69. Rd8 {[%clk 0:00:14]}  Kc3 {[%clk 0:00:22]} 70. Ke1 {[%clk 0:00:14]}  Re2+ {[%clk 0:00:19]} 71. Kf1 {[%clk 0:00:14]}  Re5 {[%clk 0:00:20]} 72. Ne4+ {[%clk 0:00:11]}  Bxe4 {[%clk 0:00:19]} 73. dxe4 {[%clk 0:00:12]}  Rxe4 {[%clk 0:00:19]} 74. Kf2 {[%clk 0:00:12]}  Kxc2 {[%clk 0:00:14]} 75. Rc8 {[%clk 0:00:12]}  c4 {[%clk 0:00:13]} 76. Kxf3 {[%clk 0:00:12]}  Rh4 {[%clk 0:00:14]} 77. Ra8 {[%clk 0:00:11]}  Rh6 {[%clk 0:00:13]} 78. Ke4 {[%clk 0:00:11]}  c3 {[%clk 0:00:13]} 79. a4 {[%clk 0:00:09]}  Kc1 {[%clk 0:00:12]} 80. a5 {[%clk 0:00:10]}  c2 {[%clk 0:00:12]} 81. Rb8 {[%clk 0:00:09]}  Rd6 {[%clk 0:00:10]} 82. Ke5 {[%clk 0:00:08]}  Rd2 {[%clk 0:00:07]} 83. Rb6 {[%clk 0:00:07]}  Kd1 {[%clk 0:00:07]} 84. Rxa6 {[%clk 0:00:08]}  c1=Q {[%clk 0:00:08]} 85. Rb6 {[%clk 0:00:07]}  Re2+ {[%clk 0:00:07]} 86. Kd4 {[%clk 0:00:07]}  Qc2 {[%clk 0:00:06]} 87. Rd6 {[%clk 0:00:05]}  Rd2+ {[%clk 0:00:06]} 88. Ke5 {[%clk 0:00:05]}  Rxd6 {[%clk 0:00:06]} 89. Kxd6 {[%clk 0:00:06]}  Qa4 {[%clk 0:00:07]} 0-1


[Site "https://www.chess.com"]

[Event "Titled Tuesday Blitz April 05 Early 2022"]
[White "Roberson, Peter T"]
[Black "Pischal, Yulia"]
[WhiteFideId "412384"]
[BlackFideId "14102390"]
[WhiteElo "2346"]
[BlackElo "1931"]
[Result "1-0"]
[Round "03"]
[TimeControl "180+1"]
[Date "2022.04.05"]
[WhiteClock "0:00:04"]
[BlackClock "0:00:02"]

1. e4 {[%clk 0:03:00]}  c5 {[%clk 0:02:59]} 2. Na3 {[%clk 0:02:59]}  g6 {[%clk 0:02:55]} 3. c3 {[%clk 0:02:59]}  Bg7 {[%clk 0:02:53]} 4. Nf3 {[%clk 0:02:58]}  d6 {[%clk 0:02:51]} 5. d4 {[%clk 0:02:58]}  Nd7 {[%clk 0:02:50]} 6. Be2 {[%clk 0:02:58]}  Ngf6 {[%clk 0:02:49]} 7. O-O {[%clk 0:02:59]}  Nxe4 {[%clk 0:02:49]} 8. Re1 {[%clk 0:02:52]}  O-O {[%clk 0:02:47]} 9. Bf4 {[%clk 0:02:52]}  cxd4 {[%clk 0:02:42]} 10. cxd4 {[%clk 0:02:47]}  Ndf6 {[%clk 0:02:37]} 11. Bd3 {[%clk 0:02:42]}  d5 {[%clk 0:02:37]} 12. Nc2 {[%clk 0:02:40]}  Bf5 {[%clk 0:02:29]} 13. Ne3 {[%clk 0:02:40]}  Be6 {[%clk 0:02:22]} 14. h3 {[%clk 0:02:38]}  h6 {[%clk 0:02:22]} 15. Qb3 {[%clk 0:02:38]}  Qb6 {[%clk 0:02:18]} 16. Qa3 {[%clk 0:02:28]}  Rfe8 {[%clk 0:02:14]} 17. Rad1 {[%clk 0:02:24]}  a5 {[%clk 0:02:09]} 18. Ne5 {[%clk 0:02:24]}  Qb4 {[%clk 0:02:05]} 19. f3 {[%clk 0:02:05]}  Nd6 {[%clk 0:01:51]} 20. Qxb4 {[%clk 0:01:46]}  axb4 {[%clk 0:01:51]} 21. Bb1 {[%clk 0:01:46]}  Rec8 {[%clk 0:01:44]} 22. Nd3 {[%clk 0:01:43]}  Nc4 {[%clk 0:01:12]} 23. Nxc4 {[%clk 0:01:33]}  Rxc4 {[%clk 0:01:07]} 24. Nc5 {[%clk 0:01:21]}  Nd7 {[%clk 0:00:52]} 25. Nxe6 {[%clk 0:01:02]}  fxe6 {[%clk 0:00:50]} 26. Rxe6 {[%clk 0:00:43]}  Rxd4 {[%clk 0:00:37]} 27. Rxd4 {[%clk 0:00:43]}  Bxd4+ {[%clk 0:00:37]} 28. Kf1 {[%clk 0:00:43]}  Nf8 {[%clk 0:00:29]} 29. Rxe7 {[%clk 0:00:40]}  Bf6 {[%clk 0:00:22]} 30. Rxb7 {[%clk 0:00:39]}  Bxb2 {[%clk 0:00:19]} 31. Bxh6 {[%clk 0:00:34]}  Bc3 {[%clk 0:00:15]} 32. Bxf8 {[%clk 0:00:19]}  Rxf8 {[%clk 0:00:15]} 33. Bxg6 {[%clk 0:00:19]}  Rf6 {[%clk 0:00:15]} 34. Bd3 {[%clk 0:00:19]}  Re6 {[%clk 0:00:14]} 35. h4 {[%clk 0:00:14]}  Re1+ {[%clk 0:00:14]} 36. Kf2 {[%clk 0:00:14]}  Ra1 {[%clk 0:00:14]} 37. Rb8+ {[%clk 0:00:08]}  Kg7 {[%clk 0:00:13]} 38. Ra8 {[%clk 0:00:09]}  Bd4+ {[%clk 0:00:11]} 39. Kg3 {[%clk 0:00:09]}  Rd1 {[%clk 0:00:10]} 40. Bc2 {[%clk 0:00:08]}  Rd2 {[%clk 0:00:09]} 41. Bb3 {[%clk 0:00:08]}  Be5+ {[%clk 0:00:09]} 42. Kh3 {[%clk 0:00:08]}  d4 {[%clk 0:00:09]} 43. Rd8 {[%clk 0:00:07]}  d3 {[%clk 0:00:08]} 44. Bc4 {[%clk 0:00:07]}  Rc2 {[%clk 0:00:06]} 45. Bxd3 {[%clk 0:00:06]}  Rxa2 {[%clk 0:00:06]} 46. Bc4 {[%clk 0:00:03]}  Ra3 {[%clk 0:00:05]} 47. Rd7+ {[%clk 0:00:03]}  Kf6 {[%clk 0:00:04]} 48. Rb7 {[%clk 0:00:04]}  Bc3 {[%clk 0:00:02]} 49. Kg4 {[%clk 0:00:04]}  Ra1 {[%clk 0:00:02]} 50. h5 {[%clk 0:00:04]} 1-0


[Site "https://www.chess.com"]

[Event "Titled Tuesday Blitz April 05 Early 2022"]
[White "Rodchenkov, Sergey D."]
[Black "Hamidi, Amir Mohammad"]
[WhiteFideId "4168712"]
[BlackFideId "12563285"]
[WhiteElo "2306"]
[BlackElo "2273"]
[Result "0-1"]
[Round "03"]
[TimeControl "180+1"]
[Date "2022.04.05"]
[WhiteClock "0:00:22"]
[BlackClock "0:00:56"]

1. e4 {[%clk 0:03:00]}  g6 {[%clk 0:02:58]} 2. d4 {[%clk 0:03:00]}  Bg7 {[%clk 0:02:59]} 3. Nc3 {[%clk 0:03:01]}  d6 {[%clk 0:02:59]} 4. Be3 {[%clk 0:03:01]}  a6 {[%clk 0:02:59]} 5. h4 {[%clk 0:03:01]}  h6 {[%clk 0:02:59]} 6. h5 {[%clk 0:02:48]}  g5 {[%clk 0:02:58]} 7. g3 {[%clk 0:02:46]}  b5 {[%clk 0:02:54]} 8. f4 {[%clk 0:02:45]}  gxf4 {[%clk 0:02:53]} 9. gxf4 {[%clk 0:02:42]}  Bb7 {[%clk 0:02:53]} 10. Bg2 {[%clk 0:02:43]}  Nf6 {[%clk 0:02:49]} 11. d5 {[%clk 0:02:42]}  c6 {[%clk 0:02:40]} 12. Nge2 {[%clk 0:02:25]}  b4 {[%clk 0:02:21]} 13. Na4 {[%clk 0:02:24]}  Nbd7 {[%clk 0:02:16]} 14. Ng3 {[%clk 0:02:19]}  cxd5 {[%clk 0:02:08]} 15. Nf5 {[%clk 0:02:13]}  Bf8 {[%clk 0:02:07]} 16. exd5 {[%clk 0:02:10]}  Qa5 {[%clk 0:02:03]} 17. c4 {[%clk 0:02:06]}  bxc3 {[%clk 0:01:58]} 18. Nxc3 {[%clk 0:02:06]}  Rg8 {[%clk 0:01:58]} 19. Bf3 {[%clk 0:02:00]}  Nc5 {[%clk 0:01:52]} 20. Qc2 {[%clk 0:01:35]}  Nxd5 {[%clk 0:01:38]} 21. Bxc5 {[%clk 0:00:49]}  Qxc5 {[%clk 0:01:06]} 22. O-O-O {[%clk 0:00:47]}  Nxc3 {[%clk 0:00:58]} 23. Bxb7 {[%clk 0:00:47]}  Rb8 {[%clk 0:00:58]} 24. Bxa6 {[%clk 0:00:25]}  Nxa2+ {[%clk 0:00:58]} 25. Kb1 {[%clk 0:00:25]}  Qxc2+ {[%clk 0:00:59]} 26. Kxc2 {[%clk 0:00:25]}  Nb4+ {[%clk 0:00:59]} 27. Kc3 {[%clk 0:00:25]}  Nxa6 {[%clk 0:01:00]} 28. Rhe1 {[%clk 0:00:22]}  Kd7 {[%clk 0:00:57]} 29. Ra1 {[%clk 0:00:22]}  Nc7 {[%clk 0:00:56]} 30. Ra7 {[%clk 0:00:22]}  e6 {[%clk 0:00:56]} 31. Nd4 {[%clk 0:00:22]}  Bg7 {[%clk 0:00:56]} 0-1


[Site "https://www.chess.com"]

[Event "Titled Tuesday Blitz April 05 Early 2022"]
[White "Rohith Krishna S"]
[Black "Svane, Frederik"]
[WhiteFideId "46617051"]
[BlackFideId "12923044"]
[WhiteElo "2117"]
[BlackElo "2459"]
[Result "*"]
[Round "03"]
[TimeControl "180+1"]
[Date "2022.04.05"]
[WhiteClock "0:02:02"]
[BlackClock "0:00:49"]

1. d4 {[%clk 0:02:59]}  Nf6 {[%clk 0:03:00]} 2. c4 {[%clk 0:02:59]}  e6 {[%clk 0:03:00]} 3. Nc3 {[%clk 0:02:57]}  Bb4 {[%clk 0:03:00]} 4. Qc2 {[%clk 0:02:57]}  O-O {[%clk 0:02:56]} 5. Nf3 {[%clk 0:02:57]}  d5 {[%clk 0:02:54]} 6. Bg5 {[%clk 0:02:50]}  h6 {[%clk 0:02:46]} 7. Bh4 {[%clk 0:02:50]}  Nbd7 {[%clk 0:02:29]} 8. e3 {[%clk 0:02:48]}  Re8 {[%clk 0:02:25]} 9. a3 {[%clk 0:02:45]}  Bxc3+ {[%clk 0:02:24]} 10. Qxc3 {[%clk 0:02:46]}  b6 {[%clk 0:01:53]} 11. cxd5 {[%clk 0:02:36]}  Nxd5 {[%clk 0:01:53]} 12. Bxd8 {[%clk 0:02:31]}  Nxc3 {[%clk 0:01:53]} 13. Bxc7 {[%clk 0:02:31]}  Nd5 {[%clk 0:01:53]} 14. Bg3 {[%clk 0:02:32]}  Bb7 {[%clk 0:01:53]} 15. Bb5 {[%clk 0:02:29]}  Red8 {[%clk 0:01:52]} 16. O-O {[%clk 0:02:25]}  N7f6 {[%clk 0:01:51]} 17. Rfc1 {[%clk 0:02:21]}  Ne4 {[%clk 0:01:50]} 18. Ne5 {[%clk 0:02:14]}  Rac8 {[%clk 0:01:45]} 19. Bc6 {[%clk 0:02:04]}  Ba6 {[%clk 0:01:38]} 20. b4 {[%clk 0:02:02]}  Ndc3 {[%clk 0:00:49]} *


[Site "https://www.chess.com"]

[Event "Titled Tuesday Blitz April 05 Early 2022"]
[White "Ronka, Erik"]
[Black "Sychev, Klementy"]
[WhiteFideId "505080"]
[BlackFideId "4114060"]
[WhiteElo "2264"]
[BlackElo "2564"]
[Result "1/2-1/2"]
[Round "03"]
[TimeControl "180+1"]
[Date "2022.04.05"]
[WhiteClock "0:00:08"]
[BlackClock "0:00:04"]

1. e4 {[%clk 0:03:00]}  g6 {[%clk 0:02:58]} 2. d4 {[%clk 0:03:00]}  Bg7 {[%clk 0:02:54]} 3. Nf3 {[%clk 0:03:01]}  d6 {[%clk 0:02:53]} 4. Bc4 {[%clk 0:03:01]}  Nf6 {[%clk 0:02:52]} 5. Qe2 {[%clk 0:03:02]}  d5 {[%clk 0:02:49]} 6. exd5 {[%clk 0:02:59]}  Nxd5 {[%clk 0:02:50]} 7. O-O {[%clk 0:02:57]}  O-O {[%clk 0:02:50]} 8. h3 {[%clk 0:02:51]}  Nc6 {[%clk 0:02:47]} 9. c3 {[%clk 0:02:50]}  Bf5 {[%clk 0:02:39]} 10. Re1 {[%clk 0:02:44]}  Re8 {[%clk 0:02:29]} 11. Ne5 {[%clk 0:02:37]}  Nxe5 {[%clk 0:02:27]} 12. dxe5 {[%clk 0:02:38]}  c6 {[%clk 0:02:28]} 13. Bb3 {[%clk 0:02:18]}  a5 {[%clk 0:02:26]} 14. Bc2 {[%clk 0:02:14]}  Bxc2 {[%clk 0:02:17]} 15. Qxc2 {[%clk 0:02:15]}  Qc7 {[%clk 0:02:14]} 16. Qe4 {[%clk 0:02:10]}  a4 {[%clk 0:02:06]} 17. Na3 {[%clk 0:02:05]}  Ra5 {[%clk 0:01:58]} 18. c4 {[%clk 0:01:50]}  Nb6 {[%clk 0:01:49]} 19. f4 {[%clk 0:01:45]}  Rd8 {[%clk 0:00:57]} 20. Be3 {[%clk 0:01:37]}  Nd7 {[%clk 0:00:57]} 21. Rad1 {[%clk 0:01:34]}  Nc5 {[%clk 0:00:55]} 22. Qc2 {[%clk 0:01:25]}  e6 {[%clk 0:00:53]} 23. Rxd8+ {[%clk 0:00:59]}  Qxd8 {[%clk 0:00:53]} 24. Rd1 {[%clk 0:01:00]}  Qc7 {[%clk 0:00:53]} 25. Qd2 {[%clk 0:00:56]}  Bf8 {[%clk 0:00:45]} 26. Nc2 {[%clk 0:00:50]}  Ra8 {[%clk 0:00:37]} 27. Qf2 {[%clk 0:00:33]}  Nd7 {[%clk 0:00:31]} 28. Nd4 {[%clk 0:00:28]}  a3 {[%clk 0:00:27]} 29. b3 {[%clk 0:00:27]}  Nc5 {[%clk 0:00:27]} 30. Nc2 {[%clk 0:00:24]}  b6 {[%clk 0:00:15]} 31. Qf3 {[%clk 0:00:18]}  Rd8 {[%clk 0:00:13]} 32. Kh2 {[%clk 0:00:15]}  Rxd1 {[%clk 0:00:13]} 33. Qxd1 {[%clk 0:00:16]}  Na6 {[%clk 0:00:13]} 34. Bc1 {[%clk 0:00:15]}  Nb4 {[%clk 0:00:11]} 35. Bxa3 {[%clk 0:00:12]}  Nxa2 {[%clk 0:00:10]} 36. Bxf8 {[%clk 0:00:12]}  Kxf8 {[%clk 0:00:10]} 37. Qa1 {[%clk 0:00:10]}  g5 {[%clk 0:00:07]} 38. Qxa2 {[%clk 0:00:09]}  gxf4 {[%clk 0:00:07]} 39. Qb2 {[%clk 0:00:09]}  f6 {[%clk 0:00:06]} 40. Nd4 {[%clk 0:00:07]}  Qxe5 {[%clk 0:00:05]} 41. Qd2 {[%clk 0:00:03]}  f3+ {[%clk 0:00:05]} 42. g3 {[%clk 0:00:03]}  Qe4 {[%clk 0:00:05]} 43. Kg1 {[%clk 0:00:03]}  c5 {[%clk 0:00:06]} 44. Nc2 {[%clk 0:00:02]}  Ke7 {[%clk 0:00:03]} 45. Kf2 {[%clk 0:00:03]}  h5 {[%clk 0:00:02]} 46. Ne3 {[%clk 0:00:03]}  h4 {[%clk 0:00:02]} 47. gxh4 {[%clk 0:00:04]}  Qxh4+ {[%clk 0:00:02]} 48. Kxf3 {[%clk 0:00:05]}  Qxh3+ {[%clk 0:00:02]} 49. Ke2 {[%clk 0:00:05]}  Qh2+ {[%clk 0:00:03]} 50. Kd3 {[%clk 0:00:06]}  Qe5 {[%clk 0:00:03]} 51. Nc2 {[%clk 0:00:06]}  f5 {[%clk 0:00:03]} 52. Qe3 {[%clk 0:00:06]}  Qd6+ {[%clk 0:00:03]} 53. Ke2 {[%clk 0:00:06]}  Qh2+ {[%clk 0:00:04]} 54. Qf2 {[%clk 0:00:07]}  Qh5+ {[%clk 0:00:04]} 55. Qf3 {[%clk 0:00:07]}  Qh2+ {[%clk 0:00:04]} 56. Qf2 {[%clk 0:00:07]}  Qh3 {[%clk 0:00:04]} 57. Qf3 {[%clk 0:00:08]}  Qh2+ {[%clk 0:00:04]} 58. Qf2 {[%clk 0:00:08]} 1/2-1/2


[Site "https://www.chess.com"]

[Event "Titled Tuesday Blitz April 05 Early 2022"]
[White "Sadovsky, Artem"]
[Black "Araujo Filho, Luiz Antonio Coel"]
[WhiteFideId "4155840"]
[BlackFideId "2130661"]
[WhiteElo "2314"]
[BlackElo "2258"]
[Result "1-0"]
[Round "03"]
[TimeControl "180+1"]
[Date "2022.04.05"]
[WhiteClock "0:01:20"]
[BlackClock "0:01:32"]

1. c4 {[%clk 0:02:37]}  f5 {[%clk 0:02:58]} 2. d3 {[%clk 0:02:35]}  Nf6 {[%clk 0:02:59]} 3. Nc3 {[%clk 0:02:30]}  g6 {[%clk 0:02:59]} 4. e4 {[%clk 0:02:29]}  d6 {[%clk 0:02:59]} 5. exf5 {[%clk 0:02:20]}  Bxf5 {[%clk 0:02:58]} 6. d4 {[%clk 0:02:21]}  Bg7 {[%clk 0:02:56]} 7. h3 {[%clk 0:02:03]}  O-O {[%clk 0:02:55]} 8. g4 {[%clk 0:02:03]}  Bc8 {[%clk 0:02:53]} 9. Bg2 {[%clk 0:02:04]}  c6 {[%clk 0:02:51]} 10. Nge2 {[%clk 0:01:59]}  Qe8 {[%clk 0:02:44]} 11. O-O {[%clk 0:01:54]}  e5 {[%clk 0:02:44]} 12. d5 {[%clk 0:01:54]}  c5 {[%clk 0:02:43]} 13. Ng3 {[%clk 0:01:49]}  Nbd7 {[%clk 0:02:27]} 14. g5 {[%clk 0:01:40]}  Nh5 {[%clk 0:02:24]} 15. Nxh5 {[%clk 0:01:40]}  gxh5 {[%clk 0:02:23]} 16. Ne4 {[%clk 0:01:38]}  Qe7 {[%clk 0:02:15]} 17. Qxh5 {[%clk 0:01:36]}  Nb6 {[%clk 0:02:07]} 18. g6 {[%clk 0:01:19]}  hxg6 {[%clk 0:01:53]} 19. Qxg6 {[%clk 0:01:20]}  Nxc4 {[%clk 0:01:42]} 20. Bg5 {[%clk 0:01:20]}  Qf7 {[%clk 0:01:32]} 21. Nf6+ {[%clk 0:01:20]} 1-0


[Site "https://www.chess.com"]

[Event "Titled Tuesday Blitz April 05 Early 2022"]
[White "Sahil, Tickoo"]
[Black "Diaz Rosas, Julio Cesar"]
[WhiteFideId "5019710"]
[BlackFideId "5105099"]
[WhiteElo "2099"]
[BlackElo "2278"]
[Result "0-1"]
[Round "03"]
[TimeControl "180+1"]
[Date "2022.04.05"]
[WhiteClock "0:00:01"]
[BlackClock "0:00:11"]

1. d4 {[%clk 0:03:00]}  Nf6 {[%clk 0:02:59]} 2. c4 {[%clk 0:03:00]}  e6 {[%clk 0:03:00]} 3. Nc3 {[%clk 0:02:59]}  Bb4 {[%clk 0:03:00]} 4. Qc2 {[%clk 0:02:59]}  b6 {[%clk 0:02:59]} 5. Bg5 {[%clk 0:02:56]}  h6 {[%clk 0:02:58]} 6. Bh4 {[%clk 0:02:55]}  g5 {[%clk 0:02:58]} 7. Bg3 {[%clk 0:02:54]}  Bb7 {[%clk 0:02:59]} 8. e3 {[%clk 0:02:53]}  Ne4 {[%clk 0:02:53]} 9. Ne2 {[%clk 0:02:39]}  f5 {[%clk 0:02:44]} 10. f3 {[%clk 0:02:35]}  Nxg3 {[%clk 0:02:38]} 11. hxg3 {[%clk 0:02:32]}  Qf6 {[%clk 0:02:36]} 12. a3 {[%clk 0:02:30]}  Bf8 {[%clk 0:02:33]} 13. O-O-O {[%clk 0:02:25]}  Nc6 {[%clk 0:02:31]} 14. Kb1 {[%clk 0:02:18]}  Bg7 {[%clk 0:02:27]} 15. Ka1 {[%clk 0:02:17]}  Na5 {[%clk 0:02:24]} 16. Nc1 {[%clk 0:02:15]}  d6 {[%clk 0:02:19]} 17. Nb3 {[%clk 0:02:07]}  Nxb3+ {[%clk 0:02:17]} 18. Qxb3 {[%clk 0:02:06]}  O-O {[%clk 0:02:15]} 19. Bd3 {[%clk 0:01:59]}  c5 {[%clk 0:02:06]} 20. Bb1 {[%clk 0:01:51]}  Rfd8 {[%clk 0:02:01]} 21. Rd2 {[%clk 0:01:48]}  cxd4 {[%clk 0:01:51]} 22. Rxd4 {[%clk 0:01:42]}  Qe7 {[%clk 0:01:48]} 23. Rd2 {[%clk 0:01:36]}  Rac8 {[%clk 0:01:48]} 24. g4 {[%clk 0:01:09]}  fxg4 {[%clk 0:01:30]} 25. Be4 {[%clk 0:00:43]}  Ba6 {[%clk 0:01:18]} 26. Bd3 {[%clk 0:00:35]}  Rc5 {[%clk 0:00:57]} 27. Ne4 {[%clk 0:00:33]}  Ra5 {[%clk 0:00:56]} 28. Kb1 {[%clk 0:00:29]}  Qf7 {[%clk 0:00:46]} 29. Nc3 {[%clk 0:00:21]}  Qf6 {[%clk 0:00:42]} 30. Ne4 {[%clk 0:00:20]}  Qf7 {[%clk 0:00:37]} 31. Nc3 {[%clk 0:00:20]}  g3 {[%clk 0:00:31]} 32. Rf1 {[%clk 0:00:19]}  Be5 {[%clk 0:00:29]} 33. Ne2 {[%clk 0:00:15]}  Rc8 {[%clk 0:00:24]} 34. f4 {[%clk 0:00:14]}  Bg7 {[%clk 0:00:23]} 35. Nxg3 {[%clk 0:00:13]}  g4 {[%clk 0:00:22]} 36. f5 {[%clk 0:00:12]}  e5 {[%clk 0:00:21]} 37. Ne4 {[%clk 0:00:11]}  Rd8 {[%clk 0:00:18]} 38. f6 {[%clk 0:00:12]}  Bf8 {[%clk 0:00:18]} 39. Ng3 {[%clk 0:00:10]}  h5 {[%clk 0:00:18]} 40. Rh1 {[%clk 0:00:09]}  d5 {[%clk 0:00:16]} 41. cxd5 {[%clk 0:00:08]}  Qxd5 {[%clk 0:00:14]} 42. Qxd5+ {[%clk 0:00:07]}  Raxd5 {[%clk 0:00:15]} 43. Bxa6 {[%clk 0:00:05]}  Rxd2 {[%clk 0:00:15]} 44. Bc4+ {[%clk 0:00:05]}  Kh7 {[%clk 0:00:14]} 45. Rxh5+ {[%clk 0:00:05]}  Kg6 {[%clk 0:00:14]} 46. f7 {[%clk 0:00:04]}  Rxg2 {[%clk 0:00:12]} 47. Bb3 {[%clk 0:00:01]}  Rxg3 {[%clk 0:00:11]} 0-1


[Site "https://www.chess.com"]